fUSD/lending_fUSD_20240613
["ID","MTS","AMOUNT","RATE_DAILY","PERIOD"]
[329346565,1718263855497,-150.0,0.0002475,2]
[329346566,1718263855520,-150.0,0.00024754,2]
[329346567,1718263855537,-245.0,0.00024769,15]
[329346568,1718263855572,-185.0,0.00024769,15]
[329346569,1718263855586,-150.0,0.00024779,2]
[329346570,1718263855609,-245.0,0.00024779,15]
[329346571,1718263855644,-185.0,0.00024779,15]
[329346572,1718263855663,-150.0,0.0002478,2]
[329346573,1718263855681,-1361.85832804,0.0002478,2]
[329346574,1718263855693,-159.21083707,0.00024785,2]
[329346575,1718263855711,-245.0,0.00024789,15]
[329346576,1718263855723,-150.5,0.00024789,15]
[329346577,1718263855739,-185.0,0.00024789,15]
[329346578,1718263855757,-151.035505,0.00024798,7]
[329346579,1718263855770,-151.035505,0.00024798,7]
[329346580,1718263855784,-151.0,0.00024798,7]
[329346581,1718263855799,-633.325383,0.00024798,7]
[329346582,1718263855811,-633.325383,0.00024798,7]
[329346583,1718263855827,-151.0,0.00024798,7]
[329346584,1718263855838,-459.01347832,0.00024798,2]
[329346585,1718263855857,-151.0,0.00024798,7]
[329346586,1718263855870,-199.754266,0.00024798,7]
[329346587,1718263855880,-199.754266,0.00024798,7]
[329346588,1718263855892,-156.910016,0.00024798,7]
[329346589,1718263855902,-151.0,0.00024798,7]
[329346590,1718263855916,-156.910016,0.00024798,7]
[329346591,1718263855937,-151.0,0.00024798,7]
[329346592,1718263855948,-710.012345,0.00024798,7]
[329346593,1718263855962,-710.012345,0.00024798,7]
[329346594,1718263855983,-151.0,0.00024798,7]
[329346595,1718263855994,-151.0,0.00024798,7]
[329346596,1718263856005,-151.0,0.00024799,7]
[329346597,1718263856016,-633.325383,0.00024799,7]
[329346598,1718263856026,-633.325383,0.00024799,7]
[329346599,1718263856037,-151.0,0.00024799,7]
[329346600,1718263856054,-18911.75722024,0.00024799,2]
[329346601,1718263856064,-18911.75722016,0.00024799,2]
[329346602,1718263856076,-151.0,0.00024799,7]
[329346603,1718263856093,-18911.75722016,0.00024799,2]
[329346604,1718263856111,-18911.75722016,0.00024799,2]
[329346605,1718263856132,-18911.75722016,0.00024799,2]
[329346606,1718263856156,-18911.75722016,0.00024799,2]
[329346607,1718263856171,-18911.75722016,0.00024799,2]
[329346608,1718263856185,-199.754266,0.00024799,7]
[329346609,1718263856199,-199.754266,0.00024799,7]
[329346610,1718263856212,-710.012345,0.00024799,7]
[329346611,1718263856226,-710.012345,0.00024799,7]
[329346612,1718263856237,-151.0,0.00024799,7]
[329346613,1718263856264,-151.0,0.00024799,7]
[329346614,1718263856275,-151.0,0.00024799,7]
[329346615,1718263856293,-151.035505,0.00024802,7]
[329346616,1718263856312,-151.035505,0.00024802,7]
[329346617,1718263856323,-151.0,0.00024802,7]
[329346618,1718263856346,-275.51847522,0.00024805,2]
[329346619,1718263856359,-153.75465886,0.00024806,2]
[329346620,1718263856372,-13409.83387308,0.00024809,2]
[329346621,1718263856386,-1500.0,0.0002481,2]
[329346622,1718263856410,-157.31584063,0.00024811,2]
[329346623,1718263856423,-150.0,0.00024812,2]
[329346624,1718263856436,-491.54199856,0.0002482,2]
[329346625,1718263856447,-1361.85832804,0.00024824,2]
[329346626,1718263856459,-151.0,0.00024827,7]
[329346627,1718263856527,-150.0,0.0002484,2]
[329346628,1718263856538,-166.5341531,0.00024843,2]
[329346629,1718263856550,-150.0,0.00024844,2]
[329346630,1718263856561,-150.0,0.00024844,2]
[329346631,1718263856571,-150.0,0.00024847,2]
[329346632,1718263856585,-150.0,0.00024858,2]
[329346633,1718263856616,-150.0,0.00024861,2]
[329346634,1718263856627,-150.0,0.00024869,2]
[329346635,1718263856639,-150.0,0.00024873,2]
[329346636,1718263856651,-150.0,0.00024887,2]
[329346637,1718263856663,-150.0,0.00024893,2]
[329346638,1718263856673,-1500.0,0.00024894,2]
[329346639,1718263856685,-6802.41760684,0.000249,2]
[329346640,1718263856697,-155.0,0.000249,2]
[329346641,1718263856713,-325.09936481,0.000249,2]
[329346642,1718263856725,-150.0,0.00024913,2]
[329346643,1718263856738,-150.0,0.00024914,2]
[329346644,1718263856751,-150.0,0.00024914,2]
[329346645,1718263856763,-150.0,0.00024916,2]
[329346646,1718263856775,-150.0,0.00024932,2]
[329346647,1718263856787,-305.13996519,0.00024933,2]
[329346648,1718263856798,-983.94,0.00024935,2]
[329346649,1718263856817,-174.44927448,0.00024938,2]
[329346650,1718263856829,-150.0,0.00024942,2]
[329346651,1718263856840,-150.0,0.00024946,2]
[329346652,1718263856852,-491.54199856,0.00024947,2]
[329346653,1718263856863,-150.0,0.0002495,2]
[329346654,1718263856875,-150.0,0.00024951,2]
[329346655,1718263856886,-150.0,0.00024965,2]
[329346656,1718263856897,-491.54199856,0.00024977,2]
[329346657,1718263856908,-153.39895733,0.00024984,2]
[329346658,1718263856938,-150.0,0.00024987,2]
[329346659,1718263856954,-2465.0416717,0.00024999,3]
[329346660,1718263856965,-150.6,0.00025,2]
[329346661,1718263856975,-326.21713808,0.00025,2]
[329346662,1718263856986,-326.55047178,0.00025,2]
[329346663,1718263857002,-434.27617748,0.00025,2]
[329346664,1718263857017,-1277.51036429,0.00025,2]
[329346665,1718263857027,-5452.60717927,0.00025,2]
[329346666,1718263857038,-159.26007305,0.00025,2]
[329346667,1718263857049,-931.14158888,0.00025,2]
[329346668,1718263857061,-155.0,0.00025,2]
[329346669,1718263857075,-181.09635127,0.00025,2]
[329346670,1718263857091,-169.14140858,0.00025,2]
[329346671,1718263857104,-155.0,0.00025,2]
[329346672,1718263857114,-184.92168253,0.00025,2]
[329346673,1718263857126,-160.0,0.00025,2]
[329346674,1718263857137,-1350.0,0.00025,2]
[329346675,1718263857157,-2000.0,0.00025,2]
[329346676,1718263857171,-200.0,0.00025,2]
[329346677,1718263857193,-447.31440333,0.00025,2]
[329346678,1718263857208,-1047.44458208,0.00025,2]
[329346679,1718263857222,-500.0,0.00025,2]
[329346680,1718263857234,-35007.67515838,0.00025,2]
[329346681,1718263857251,-2000.0,0.00025,2]
[329346682,1718263857270,-200.0,0.00025,2]
[329346683,1718263857386,-150.0,0.00025,2]
[329346684,1718263857399,-151.0,0.00025,7]
[329346685,1718263857412,-254.921604,0.00025,7]
[329346686,1718263857423,-151.0,0.00025,7]
[329346687,1718263857442,-200.0,0.00025,2]
[329346688,1718263857459,-150.0,0.00025,4]
[329346689,1718263857488,-200.0,0.00025,2]
[329346690,1718263857500,-151.54705947,0.00025001,2]
[329346691,1718263857515,-227.0,0.0002503,2]
[329346692,1718263857531,-153.27,0.00025036,15]
[329346693,1718263857543,-150.5,0.00025046,15]
[329346694,1718263857554,-224.13,0.00025056,15]
[329346695,1718263857579,-150.5,0.00025056,15]
[329346696,1718263857601,-166.5341531,0.00025067,2]
[329346697,1718263857617,-526.76,0.00025068,2]
[329346698,1718263857628,-707.34,0.00025068,2]
[329346699,1718263857639,-328.62,0.00025068,2]
[329346700,1718263857651,-300.0,0.00025068,2]
[329346701,1718263857662,-151.73,0.00025068,2]
[329346702,1718263857676,-302.56,0.00025068,2]
[329346703,1718263857691,-845.88,0.00025068,2]
[329346704,1718263857709,-300.0,0.00025068,2]
[329346705,1718263857721,-300.0,0.00025068,2]
[329346706,1718263857732,-300.0,0.00025068,2]
[329346707,1718263857746,-1053.52,0.00025068,2]
[329346708,1718263857763,-154.2087486,0.00025079,2]
[329346709,1718263857789,-152.94225763,0.00025089,2]
[329346710,1718263857817,-459.01347832,0.0002509,2]
[329346711,1718263857832,-491.54199856,0.00025123,2]
[329346712,1718263857846,-155.36469262,0.00025126,2]
[329346713,1718263857872,-491.54199856,0.00025134,2]
[329346714,1718263857883,-166.66666666,0.00025152,2]
[329346715,1718263857905,-152.94225763,0.00025158,2]
[329346716,1718263857916,-811.0,0.0002516,2]
[329346717,1718263857938,-2407.0,0.0002516,2]
[329346718,1718263857953,-150.0,0.0002516,2]
[329346719,1718263857972,-3178.0,0.0002516,2]
[329346720,1718263857983,-1980.0,0.0002516,2]
[329346721,1718263857995,-546.0,0.0002516,2]
[329346722,1718263858011,-1304.0,0.0002516,2]
[329346723,1718263858022,-13288.863,0.0002516,2]
[329346724,1718263858035,-5158.0,0.0002516,2]
[329346725,1718263858065,-5788.0,0.0002516,2]
[329346726,1718263858077,-359.0,0.0002516,2]
[329346727,1718263858099,-290.0,0.0002516,2]
[329346728,1718263858109,-1830.0,0.0002516,2]
[329346729,1718263858122,-1195.0,0.0002516,2]
[329346730,1718263858138,-1205.878,0.0002516,2]
[329346731,1718263858150,-442.0,0.0002516,2]
[329346732,1718263858172,-151.0,0.0002516,7]
[329346733,1718263858187,-156.910016,0.0002516,7]
[329346734,1718263858200,-151.0,0.0002516,7]
[329346735,1718263858215,-156.910016,0.0002516,7]
[329346736,1718263858228,-152.94225763,0.0002518,2]
[329346737,1718263858239,-166.5341531,0.00025194,2]
[329346738,1718263858258,-151.68681028,0.00025199,2]
[329346739,1718263858270,-151.0,0.00025234,3]
[329346740,1718263858283,-151.035505,0.00025242,7]
[329346741,1718263858294,-151.035505,0.00025242,7]
[329346742,1718263858310,-151.0,0.00025242,7]
[329346743,1718263858322,-2000.0,0.0002525,2]
[329346744,1718263858332,-200.0,0.0002525,2]
[329346745,1718263858347,-2000.0,0.0002525,2]
[329346746,1718263858364,-200.0,0.0002525,2]
[329346747,1718263858378,-200.0,0.0002525,2]
[329346748,1718263858403,-200.0,0.0002525,2]
[329346749,1718263858413,-151.54705947,0.00025262,2]
[329346750,1718263858438,-166.66666666,0.00025295,2]
[329346751,1718263858449,-154.2087486,0.00025308,2]
[329346752,1718263858463,-305.13996519,0.00025319,2]
[329346753,1718263858482,-491.54199856,0.00025335,2]
[329346754,1718263858495,-154.94946853,0.00025379,2]
[329346755,1718263858509,-1361.85832804,0.00025427,2]
[329346756,1718263858521,-305.13996519,0.00025429,2]
[329346757,1718263858533,-13409.83387308,0.00025445,2]
[329346758,1718263858552,-153.39895733,0.00025459,2]
[329346759,1718263858563,-151.0,0.00025479,7]
[329346760,1718263858574,-199.754266,0.00025479,7]
[329346761,1718263858588,-199.754266,0.00025479,7]
[329346762,1718263858600,-710.012345,0.00025479,7]
[329346763,1718263858611,-710.012345,0.00025479,7]
[329346764,1718263858621,-151.0,0.00025479,7]
[329346765,1718263858632,-151.0,0.00025479,7]
[329346766,1718263858643,-243.0998,0.00025479,7]
[329346767,1718263858668,-151.0,0.00025479,7]
[329346768,1718263858684,-151.0,0.00025479,7]
[329346769,1718263858697,-151.0,0.00025479,7]
[329346770,1718263858714,-247.264831,0.00025479,7]
[329346771,1718263858724,-1531.39045969,0.000255,2]
[329346772,1718263858734,-200.0,0.00025503,2]
[329346773,1718263858745,-2000.0,0.00025503,2]
[329346774,1718263858756,-200.0,0.00025503,2]
[329346775,1718263858767,-200.0,0.00025503,2]
[329346776,1718263858777,-151.68681028,0.00025531,2]
[329346777,1718263858788,-491.54199856,0.00025538,2]
[329346778,1718263858805,-459.01347832,0.00025572,2]
[329346779,1718263858815,-459.01347832,0.00025576,2]
[329346780,1718263858828,-151.54705947,0.00025582,2]
[329346781,1718263858849,-305.13996519,0.0002561,2]
[329346782,1718263858881,-152.94225763,0.00025645,2]
[329346783,1718263858893,-157.31584063,0.00025678,2]
[329346784,1718263858905,-491.54199856,0.00025694,2]
[329346785,1718263858916,-305.13996519,0.00025695,2]
[329346786,1718263858928,-459.01347832,0.00025707,2]
[329346787,1718263858952,-153.75465886,0.0002571,2]
[329346788,1718263858965,-159.21083707,0.00025736,2]
[329346789,1718263858988,-200.0,0.00025758,2]
[329346790,1718263859007,-200.0,0.00025758,2]
[329346791,1718263859024,-459.01347832,0.00025759,2]
[329346792,1718263859044,-633.325383,0.00025809,7]
[329346793,1718263859060,-633.325383,0.00025809,7]
[329346794,1718263859075,-150.0,0.00025809,2]
[329346795,1718263859091,-459.01347832,0.00025813,2]
[329346796,1718263859107,-151.68681028,0.00025835,2]
[329346797,1718263859140,-305.13996519,0.00025867,2]
[329346798,1718263859157,-164.39,0.0002589,2]
[329346799,1718263859173,-1361.85832804,0.00025904,2]
[329346800,1718263859193,-1361.85832804,0.00025915,2]
[329346801,1718263859208,-151.0,0.00025915,4]
[329346802,1718263859232,-159.21083707,0.00025939,2]
[329346803,1718263859272,-227.0,0.0002598,2]
[329346804,1718263859286,-151.0,0.0002598,7]
[329346805,1718263859301,-459.01347832,0.00025986,2]
[329346806,1718263859318,-3000.0,0.00026,2]
[329346807,1718263859368,-201.692111,0.00026,2]
[329346808,1718263859396,-305.13996519,0.00026011,2]
[329346809,1718263859427,-200.0,0.00026015,2]
[329346810,1718263859453,-200.0,0.00026015,2]
[329346811,1718263859494,-156.77566534,0.00026019,2]
[329346812,1718263859513,-151.0,0.0002602,7]
[329346813,1718263859534,-491.54199856,0.00026023,2]
[329346814,1718263859569,-151.0,0.00026027,7]
[329346815,1718263859587,-287.281486,0.00026027,7]
[329346816,1718263859623,-166.5341531,0.00026072,2]
[329346817,1718263859651,-13409.83387308,0.00026082,2]
[329346818,1718263859665,-459.01347832,0.00026098,2]
[329346819,1718263859679,-153.75465886,0.00026101,2]
[329346820,1718263859696,-152.94225763,0.00026198,2]
[329346821,1718263859723,-491.54199856,0.00026232,2]
[329346822,1718263859736,-153.39895733,0.00026269,2]
[329346823,1718263859763,-305.13996519,0.00026277,2]
[329346824,1718263859776,-1361.85832804,0.0002633,2]
[329346825,1718263859797,-154.2087486,0.00026334,2]
[329346826,1718263859811,-153.75465886,0.00026339,2]
[329346827,1718263859824,-491.54199856,0.00026366,2]
[329346828,1718263859838,-166.66666666,0.00026379,2]
[329346829,1718263859877,-187.19211225,0.000264,2]
[329346830,1718263859891,-156.77566534,0.00026423,2]
[329346831,1718263859904,-154.2087486,0.00026439,2]
[329346832,1718263859925,-305.13996519,0.00026443,2]
[329346833,1718263859945,-153.52717856,0.00026446,2]
[329346834,1718263859964,-305.13996519,0.00026464,2]
[329346835,1718263859979,-18911.75722016,0.00026478,2]
[329346836,1718263860004,-150.0,0.00026532,10]
[329346837,1718263860026,-152.94225763,0.00026545,2]
[329346838,1718263860042,-159.21083707,0.00026559,2]
[329346839,1718263860064,-459.01347832,0.0002657,2]
[329346840,1718263860087,-491.54199856,0.00026577,2]
[329346841,1718263860113,-151.0,0.00026596,4]
[329346842,1718263860128,-355.0,0.000266,2]
[329346843,1718263860155,-491.54199856,0.00026627,2]
[329346844,1718263860169,-166.5341531,0.00026628,2]
[329346845,1718263860199,-156.77566534,0.00026629,2]
[329346846,1718263860232,-151.68681028,0.0002665,2]
[329346847,1718263860269,-166.5341531,0.00026673,2]
[329346848,1718263860309,-169.24313753,0.00026688,2]
[329346849,1718263860324,-13409.83387308,0.00026718,2]
[329346850,1718263860338,-154.2087486,0.00026724,2]
[329346851,1718263860353,-156.77566534,0.00026724,2]
[329346852,1718263860368,-166.66666666,0.00026775,2]
[329346853,1718263860381,-166.66666666,0.0002682,2]
[329346854,1718263860395,-1361.85832804,0.00026822,2]
[329346855,1718263860409,-305.13996519,0.00026845,2]
[329346856,1718263860442,-153.75465886,0.0002685,2]
[329346857,1718263860455,-259.5,0.0002687,15]
[329346858,1718263860485,-150.0,0.00026879,10]
[329346859,1718263860513,-80657.71150878,0.0002688,2]
[329346860,1718263861138,-728.22246321,0.00014999,2]
[329346861,1718263861164,-1023.02124327,0.00014999,2]
[329346862,1718263861197,-214.27000477,0.00014999,2]
[329346863,1718263861213,-151.0,0.00023,7]
[329346864,1718263861231,-151.0,0.000236,7]
[329346865,1718263861242,-407.50783523,0.0002688,2]
[329346866,1718263861597,-157.592043,0.000243,7]
[329346867,1718263861608,-1175.55550787,0.0002688,2]
[329346868,1718263861768,-205.04112632,0.00014999,2]
[329346869,1718263861805,-1269.0,0.0002071,2]
[329346870,1718263861819,-21534.27130495,0.0002688,2]
[329346871,1718263861832,-151.035505,0.0002688,7]
[329346872,1718263861850,-151.035505,0.0002688,7]
[329346873,1718263861862,-151.0,0.0002688,7]
[329346874,1718263861881,-151.0,0.0002688,7]
[329346875,1718263861935,-150.5,0.0002688,15]
[329346876,1718263861956,-243.379311,0.0002688,7]
[329346877,1718263861967,-151.0,0.0002688,7]
[329346878,1718263861977,-151.0,0.0002688,7]
[329346879,1718263861996,-633.325383,0.0002688,7]
[329346880,1718263862011,-633.325383,0.0002688,7]
[329346881,1718263862022,-151.0,0.0002688,7]
[329346882,1718263862049,-199.754266,0.0002688,7]
[329346883,1718263862064,-199.754266,0.0002688,7]
[329346884,1718263862074,-156.910016,0.0002688,7]
[329346885,1718263862090,-151.0,0.0002688,7]
[329346886,1718263862106,-156.910016,0.0002688,7]
[329346887,1718263862118,-710.012345,0.0002688,7]
[329346888,1718263862132,-710.012345,0.0002688,7]
[329346889,1718263862151,-151.0,0.0002688,7]
[329346890,1718263862162,-151.0,0.0002688,7]
[329346891,1718263862174,-150.5,0.0002689,15]
[329346892,1718263862186,-10563.96285263,0.000269,2]
[329346893,1718263862972,-450.88714737,0.000269,2]
[329346894,1718263862985,-151.0,0.000269,7]
[329346895,1718263862996,-227.0,0.0002692,2]
[329346896,1718263863024,-152.94225763,0.00026927,2]
[329346897,1718263863049,-166.66666666,0.0002693,2]
[329346898,1718263863066,-155.36469262,0.00026968,2]
[329346899,1718263863077,-300.0,0.00026968,2]
[329346900,1718263863110,-459.01347832,0.00026992,2]
[329346901,1718263863160,-19598.62744008,0.00027,2]
[329346902,1718263863184,-5000.0,0.00027,7]
[329346903,1718263863200,-576.8138071,0.00027,2]
[329346904,1718263863237,-1400.0,0.00027,2]
[329346905,1718263863265,-2068.363595,0.00027,2]
[329346906,1718263863297,-300.0,0.00027,7]
[329346907,1718263863309,-152.94225763,0.00027035,2]
[329346908,1718263863319,-1361.85832804,0.00027111,2]
[329346909,1718263863339,-22040.35742751,0.00027132,2]
[329346910,1718263863352,-153.52717857,0.00027146,2]
[329346911,1718263863366,-159.21083707,0.00027162,2]
[329346912,1718263863396,-166.5341531,0.00027167,2]
[329346913,1718263863421,-983.94,0.00027198,2]
[329346914,1718263863433,-2036.15246423,0.000272,2]
[329346915,1718263863445,-153.75465886,0.00027208,2]
[329346916,1718263863468,-459.01347832,0.00027212,2]
[329346917,1718263863487,-151.68681028,0.00027223,2]
[329346918,1718263863499,-151.0,0.00027277,5]
[329346919,1718263863513,-159.21083707,0.00027311,2]
[329346920,1718263863523,-151.68681028,0.00027331,2]
[329346921,1718263863539,-13409.83387308,0.00027355,2]
[329346922,1718263863552,-152.94225763,0.00027355,2]
[329346923,1718263863563,-459.01347832,0.0002737,2]
[329346924,1718263863574,-152.94225763,0.00027376,2]
[329346925,1718263863593,-152.66390094,0.00027397,2]
[329346926,1718263863605,-156.086982,0.00027397,7]
[329346927,1718263863618,-150.59,0.00027397,2]
[329346928,1718263863630,-172.39,0.00027397,2]
[329346929,1718263863647,-2103.28914058,0.000274,2]
[329346930,1718263863669,-407.0,0.000274,2]
[329346931,1718263863681,-200.0,0.000274,2]
[329346932,1718263863700,-5775.06687645,0.000274,2]
[329346933,1718263863717,-159.4549025,0.000274,2]
[329346934,1718263863736,-222.76422777,0.000274,2]
[329346935,1718263863746,-3587.87259836,0.000274,2]
[329346936,1718263863756,-796.0,0.000274,2]
[329346937,1718263863773,-1000.0,0.000274,2]
[329346938,1718263863796,-1665.0,0.000274,2]
[329346939,1718263863807,-437.0,0.000274,2]
[329346940,1718263863855,-808.85989063,0.000274,2]
[329346941,1718263863874,-156.55,0.000274,2]
[329346942,1718263863897,-152.94225763,0.00027402,2]
[329346943,1718263863908,-305.13996519,0.00027488,2]
[329346944,1718263863918,-305.13996519,0.0002751,2]
[329346945,1718263863937,-154.2087486,0.00027519,2]
[329346946,1718263863967,-300.0,0.00027527,2]
[329346947,1718263863979,-459.01347832,0.0002754,2]
[329346948,1718263863990,-1204.94218696,0.000276,2]
[329346949,1718263864001,-1204.94218696,0.000276,2]
[329346950,1718263864022,-300.0,0.000276,2]
[329346951,1718263864032,-153.75465886,0.00027604,2]
[329346952,1718263864055,-151.68681028,0.00027615,2]
[329346953,1718263864067,-305.13996519,0.00027624,2]
[329346954,1718263864096,-154.94946853,0.00027659,2]
[329346955,1718263864116,-500.0,0.00027671,2]
[329346956,1718263864154,-524.05935471,0.00027671,2]
[329346957,1718263864183,-153.75465886,0.00027675,2]
[329346958,1718263864194,-491.54199856,0.00027679,2]
[329346959,1718263864204,-305.13996519,0.00027685,2]
[329346960,1718263864217,-11014.85,0.000277,2]
[329346961,1718263864229,-1531.39045969,0.000277,2]
[329346962,1718263864248,-491.54199856,0.00027704,2]
[329346963,1718263864266,-157.31584063,0.00027729,2]
[329346964,1718263864276,-153.75465886,0.00027775,2]
[329346965,1718263864287,-1000.0,0.000278,2]
[329346966,1718263864306,-224.0,0.000278,2]
[329346967,1718263864323,-305.13996519,0.00027827,2]
[329346968,1718263864340,-1361.85832804,0.00027855,2]
[329346969,1718263864356,-227.0,0.0002787,2]
[329346970,1718263864367,-166.5341531,0.00027892,2]
[329346971,1718263864379,-11014.84,0.000279,2]
[329346972,1718263864466,-294.4779675,0.000279,2]
[329346973,1718263864518,-1361.85832804,0.0002791,2]
[329346974,1718263864538,-156.77566534,0.00027954,2]
[329346975,1718263864550,-151.0,0.00027958,5]
[329346976,1718263864578,-160.90832449,0.00027984,2]
[329346977,1718263864589,-13409.83387308,0.00027991,2]
[329346978,1718263864739,-469.32593514,0.00028,2]
[329346979,1718263864792,-200.0,0.00028,2]
[329346980,1718263864819,-151.54705947,0.00028024,2]
[329346981,1718263864835,-151.035505,0.00028027,7]
[329346982,1718263864849,-151.035505,0.00028027,7]
[329346983,1718263864885,-241.277399,0.00028027,7]
[329346984,1718263864898,-151.54705947,0.00028032,2]
[329346985,1718263864937,-156.77566534,0.00028046,2]
[329346986,1718263864953,-1361.85832804,0.00028067,2]
[329346987,1718263864980,-245.0,0.0002807,15]
[329346988,1718263864993,-185.0,0.0002807,15]
[329346989,1718263865006,-245.0,0.0002808,15]
[329346990,1718263865048,-185.0,0.0002808,15]
[329346991,1718263865090,-245.0,0.0002809,15]
[329346992,1718263865101,-185.0,0.0002809,15]
[329346993,1718263865129,-459.01347832,0.00028117,2]
[329346994,1718263865152,-156.77566534,0.00028132,2]
[329346995,1718263865162,-305.13996519,0.00028157,2]
[329346996,1718263865175,-150.59,0.00028158,2]
[329346997,1718263865195,-374.648,0.0002816,2]
[329346998,1718263865206,-333.061,0.0002816,2]
[329346999,1718263865217,-2698.805,0.0002816,2]
[329347000,1718263865242,-1980.0,0.0002816,2]
[329347001,1718263865253,-546.0,0.0002816,2]
[329347002,1718263865272,-1304.0,0.0002816,2]
[329347003,1718263865283,-5158.0,0.0002816,2]
[329347004,1718263865295,-5788.0,0.0002816,2]
[329347005,1718263865331,-359.0,0.0002816,2]
[329347006,1718263865347,-290.0,0.0002816,2]
[329347007,1718263865360,-1830.0,0.0002816,2]
[329347008,1718263865371,-1188.036,0.0002816,2]
[329347009,1718263865388,-442.0,0.0002816,2]
[329347010,1718263865398,-151.0,0.0002816,7]
[329347011,1718263865409,-151.0,0.0002816,7]
[329347012,1718263865426,-150.0,0.00028163,10]
[329347013,1718263865497,-151.0,0.00028164,7]
[329347014,1718263865518,-633.325383,0.00028164,7]
[329347015,1718263865530,-633.325383,0.00028164,7]
[329347016,1718263865543,-151.0,0.00028164,7]
[329347017,1718263865563,-151.0,0.00028164,7]
[329347018,1718263865592,-199.754266,0.00028164,7]
[329347019,1718263865621,-199.754266,0.00028164,7]
[329347020,1718263865636,-156.910016,0.00028164,7]
[329347021,1718263865646,-151.0,0.00028164,7]
[329347022,1718263865676,-156.910016,0.00028164,7]
[329347023,1718263865691,-710.012345,0.00028164,7]
[329347024,1718263865722,-710.012345,0.00028164,7]
[329347025,1718263865749,-151.0,0.00028164,7]
[329347026,1718263865768,-151.0,0.00028164,7]
[329347027,1718263865780,-209.241056,0.00028164,2]
[329347028,1718263865798,-170.204094,0.00028164,2]
[329347029,1718263865817,-180.635522,0.00028164,2]
[329347030,1718263865839,-246.071838,0.00028164,2]
[329347031,1718263865854,-187.831712,0.00028164,2]
[329347032,1718263865873,-180.507268,0.00028164,2]
[329347033,1718263865940,-292.004114,0.00028164,2]
[329347034,1718263865980,-190.69107,0.00028164,2]
[329347035,1718263865995,-345.368826,0.00028164,2]
[329347036,1718263866006,-188.498004,0.00028164,2]
[329347037,1718263866021,-192.06978,0.00028164,2]
[329347038,1718263866032,-158.983542,0.00028164,2]
[329347039,1718263866053,-428.799201,0.00028164,2]
[329347040,1718263866065,-173.209281,0.00028164,2]
[329347041,1718263866078,-10564.662279,0.00028164,2]
[329347042,1718263866104,-10503.92553,0.00028164,2]
[329347043,1718263866118,-274.954033,0.00028164,2]
[329347044,1718263866156,-10067.801312,0.00028164,2]
[329347045,1718263866169,-176.826942,0.00028164,2]
[329347046,1718263866181,-181.905186,0.00028164,2]
[329347047,1718263866195,-154.907176,0.00028164,2]
[329347048,1718263866206,-697.917617,0.00028164,2]
[329347049,1718263866216,-188.647901,0.00028164,2]
[329347050,1718263866227,-158.890657,0.00028164,2]
[329347051,1718263866239,-491.54199856,0.00028184,2]
[329347052,1718263866250,-1084.94843928,0.00028189,2]
[329347053,1718263866265,-3891.24326839,0.00028189,2]
[329347054,1718263866286,-1688.93725,0.00028189,2]
[329347055,1718263866305,-304.65072373,0.00028189,2]
[329347056,1718263866318,-1224.39746683,0.00028189,2]
[329347057,1718263866362,-10717.58007193,0.00028189,2]
[329347058,1718263866384,-522.45240238,0.00028218,2]
[329347059,1718263866561,-1269.0,0.0002371,2]
[329347060,1718263866574,-266.54081444,0.0002671,2]
[329347061,1718263866588,-1002.45918556,0.0002671,2]
[329347062,1718263866600,-936.36730988,0.00028218,2]
[329347063,1718263866613,-322.9200001,0.00028218,2]
[329347066,1718264150290,205.0,9.8e-05,2]